[Event "26th Hit Open-A 2022"]
[Site "Nova Gorica"]
[Date "2022.09.20"]
[Round "7.45"]
[White "Hellsten, Uffe"]
[Black "Novak, Simona"]
[Result "0-1"]
[ECO "B12"]
[WhiteElo "1732"]
[BlackElo "1692"]
[Annotator "NA COMBH"]
[PlyCount "116"]
[EventDate "2022.09.16"]
[EventType "swiss"]
[EventCountry "SLO"]
[SourceTitle "playchess.com"]
[Source "ChessBase"]
[SourceQuality "1"]
[TimeControl "5400+30"]

1. e4 {[%emt 0:00:31]} c6 {[%emt 0:00:04]} 2. d4 {[%emt 0:00:00]} d5 {[%emt 0:00:05]} 3. e5 {[%emt 0:00:00]} Bf5 {[%emt 0:00:15]} 4. h4 {[%emt 0:00:09]} h5 {[%emt 0:00:19]} 5. Bd3 {[%emt 0:00:25]} Bxd3 {[%emt 0:00:12]} 6. Qxd3 {[%emt 0:00:07]} e6 {[%emt 0:00:08]} 7. Bg5 {[%emt 0:00:26]} Qb6 {[%emt 0:02:30]} 8. Nd2 {[%emt 0:01:19]} c5 {[%emt 0:01:45]} 9. c4 {[%emt 0:01:48]} Qxb2 {[%emt 0:09:17]} 10. Rb1 {[%emt 0:00:06]} Qxd4 {[%emt 0:00:05]} 11. Qb3 {[%emt 0:08:53]} Qxe5+ {[%emt 0:02:34]} 12. Ne2 {[%emt 0:00:05]} Qc7 {[%emt 0:10:21]} 13. cxd5 {[%emt 0:04:45]} e5 {[%emt 0:01:39]} 14. Nc4 {[%emt 0:08:29]} f6 {[%emt 0:04:45]} 15. Rd1 {[%emt 0:16:33]} Nd7 {[%emt 0:08:10]} 16. d6 {[%emt 0:00:59]} Qc6 {[%emt 0:00:42]} 17. Na5 {[%emt 0:14:16]} c4 {[%emt 0:07:25]} 18. Qh3 {[%emt 0:03:02]} Qb5 {[%emt 0:05:33]} 19. Qe6+ {[%emt 0:02:38]} Kd8 {[%emt 0:00:05]} 20. Bd2 {[%emt 0:01:05]} Nh6 {[%emt 0:02:47]} 21. O-O {[%emt 0:05:57]} Nc5 {[%emt 0:07:05]} 22. Qd5 {[%emt 0:00:51]} Rc8 {[%emt 0:01:22]} 23. Rb1 {[%emt 0:05:27]} Qd7 {[%emt 0:00:44]} 24. Nxb7+ {[%emt 0:00:16]} Nxb7 {[%emt 0:00:12]} 25. Rxb7 {[%emt 0:00:25]} Qxd6 {[%emt 0:00:17]} 26. Ba5+ {[%emt 0:08:19]} Ke8 {[%emt 0:00:39]} 27. Qf3 {[%emt 0:00:43]} Qd3 {[%emt 0:04:10]} 28. Nc3 {[%emt 0:04:18]} Qxf3 {[%emt 0:00:35]} 29. gxf3 {[%emt 0:00:07]} Nf5 {[%emt 0:00:31]} 30. Nb5 {[%emt 0:04:12]} Bc5 {[%emt 0:05:44]} 31. f4 {[%emt 0:04:04]} Nxh4 {[%emt 0:01:29]} 32. fxe5 {[%emt 0:01:02]} Nf3+ {[%emt 0:00:21]} 33. Kg2 {[%emt 0:00:34]} Nxe5 {[%emt 0:03:33]} 34. Rxg7 {[%emt 0:01:07]} Kf8 {[%emt 0:01:34]} 35. Rb7 {[%emt 0:01:02]} Rg8+ {[%emt 0:00:13]} 36. Kh1 {[%emt 0:00:06]} Rg7 {[%emt 0:01:34]} 37. Rxg7 {[%emt 0:02:18]} Kxg7 {[%emt 0:00:01]} 38. Nc3 {[%emt 0:02:02]} Nd3 {[%emt 0:01:29]} 39. Ne4 {[%emt 0:00:30]} f5 {[%emt 0:00:48]} 40. Bc3+ {[%emt 0:00:22]} Kg6 {[%emt 0:00:07]} 41. Rg1+ {[%emt 0:00:11]} Kf7 {[%emt 0:01:42]} 42. Rg7+ {[%emt 0:00:46]} Ke6 {[%emt 0:00:12]} 43. Ng5+ {[%emt 0:00:33]} Kd5 {[%emt 0:00:11]} 44. f3 {[%emt 0:00:56]} Re8 {[%emt 0:03:42]} 45. Rd7+ {[%emt 0:00:39]} Kc6 {[%emt 0:00:02]} 46. Rf7 {[%emt 0:00:10]} Re2 {[%emt 0:00:30]} 47. Ba5 {[%emt 0:00:54]} Nf2+ {[%emt 0:00:06]} 48. Kg1 {[%emt 0:00:23]} Nh3+ {[%emt 0:00:07]} 49. Kf1 {[%emt 0:00:10]} Rf2+ {[%emt 0:00:02]} 50. Ke1 {[%emt 0:00:08]} Nxg5 {[%emt 0:00:03]} 51. Rc7+ {[%emt 0:00:18]} Kb5 {[%emt 0:02:33]} 52. Rxc5+ {[%emt 0:00:05]} Kxc5 {[%emt 0:00:04]} 53. Kxf2 {[%emt 0:00:05]} Kd4 {[%emt 0:00:10]} 54. Ke2 {[%emt 0:00:38]} Ne6 {[%emt 0:00:40]} 55. Be1 {[%emt 0:01:21]} c3 {[%emt 0:00:15]} 56. Bf2+ {[%emt 0:00:18]} Kc4 {[%emt 0:00:17]} 57. Bxa7 {[%emt 0:00:34]} Nd4+ {[%emt 0:00:52]} 58. Ke3 {[%emt 0:00:56]} f4+ {[%emt 0:01:18]} 0-1

[Event "26th Hit Open-A 2022"]
[Site "Nova Gorica"]
[Date "2022.09.21"]
[Round "8.1"]
[White "Ghazarian, Kirk"]
[Black "Wadsworth, Matthew J"]
[Result "1/2-1/2"]
[ECO "B48"]
[WhiteElo "2440"]
[BlackElo "2423"]
[Annotator "TA"]
[PlyCount "118"]
[EventDate "2022.09.16"]
[EventType "swiss"]
[EventCountry "SLO"]
[SourceTitle "playchess.com"]
[Source "ChessBase"]
[SourceQuality "1"]
[TimeControl "5400+30"]

{[%evp 11,118,24,33,19,24,32,38,12,25,13,16,16,20,22,27,27,58,29,27,20,217,0,0,18,9,0,16,25,8,-39,-16,-49,-25,-86,-18,-96,-19,-25,-23,-19,21,17,32,33,187,181,186,183,177,129,141,96,102,112,116,101,104,70,72,51,80,78,131,62,87,0,8,0,0,0,0,0,0,0,0,0,0,0,0,0,0,0,0,0,148,0,0,0,0,0,0,0,0,0,0,0,0,0,0,0,0,0,0,0,0,0,0,0,0]} 1. e4 {[%emt 0:01:33]} c5 {[%emt 0:00:07]} 2. Nf3 {[%emt 0:00:06]} e6 {[%emt 0:00:16]} 3. d4 {[%emt 0:01:20]} cxd4 {[%emt 0:00:20]} 4. Nxd4 {[%emt 0:00:09]} Nc6 {[%emt 0:00:08]} 5. Nc3 {[%emt 0:00:13]} Qc7 {[%emt 0:00:26]} 6. Be3 {[%emt 0:00:22]} a6 {[%emt 0:00:28]} 7. Qf3 {[%emt 0:00:58] 7.g4 gains popularity. B48: Sicilian: Taimanov: 5 Nc3 Qc7 6 Be3 a6 without Be2.} Bd6 {[%emt 0:00:45]} 8. O-O-O {[%emt 0:00:43]} Be5 {[%emt 0:01:16]} 9. Nxc6 {[%emt 0:00:11] White is slightly better.} bxc6 {[%emt 0:00:27]} 10. Bd4 {[%emt 0:00:07]} Nf6 {[%emt 0:04:27]} 11. Bxe5 {[%emt 0:00:35]} Qxe5 {[%emt 0:00:07]} 12. Qe3 {[%emt 0:00:13]} Ng4 {[%emt 0:04:00][%csl LRe3,LRh2]} 13. Qe1 {[%emt 0:00:09]} Rb8 {[%emt 0:07:26] [#]} 14. h3 $146 {[%emt 0:07:17]} ({Predecessor:} 14. f3 Nf6 15. Qg3 Qxg3 16. hxg3 d5 17. Bd3 h6 18. g4 Rg8 19. Rhe1 Ke7 20. Na4 {½-½ (46) Kuipers,S (2470)-Gledura,B (2615) Wijk aan Zee 2019}) 14... Nf6 {[%emt 0:06:13]} 15. Qe3 {[%emt 0:01:46]} Qa5 $2 {[%emt 0:07:50]} (15... O-O $11 {and Black has nothing to worry.}) 16. e5 $2 {[%emt 0:05:59]} (16. Qg3 $1 $18 {[%cal Rg3b8]} Qb4 17. Bb5 $1 {[%mdl 512]} Rxb5 18. Nxb5) 16... Nd5 $11 {[%emt 0:01:21]} 17. Nxd5 {[%emt 0:00:25]} cxd5 {[%emt 0:00:27]} 18. Kb1 {[%emt 0:01:29]} Qb6 {[%emt 0:13:04]} 19. Qxb6 {[%emt 0:19:20] Active counter play!} Rxb6 {[%emt 0:00:05]} 20. c4 {[%emt 0:14:13]} (20. Rd4 $11) 20... dxc4 {[%emt 0:11:29]} 21. Rd6 {[%emt 0:04:01]} Rb4 {[%emt 0:07:46]} 22. Be2 {[%emt 0:03:03]} (22. a3 $11 Ra4 23. Rd4) 22... Ke7 {[%emt 0:07:36]} (22... Bb7 $17 23. Rc1 Bxg2 24. Bxc4 Ke7) 23. Rd4 {[%emt 0:20:22]} (23. a3 $11 Rb5 24. Bxc4 Rxe5 25. Rb6) 23... f6 {[%emt 0:00:33]} (23... Bb7 $17 24. Rhd1 Rd8) 24. exf6+ {[%emt 0:01:16]} (24. Rxc4 Rxc4 25. exf6+ (25. Bxc4 fxe5 26. Bd3 Bb7 $17) 25... gxf6 26. Bxc4 Bb7 $17) 24... gxf6 {[%emt 0:00:07]} 25. a3 {[%emt 0:00:32]} (25. Rxc4 Rxc4 26. Bxc4 Bb7 $17) 25... Ra4 {[%emt 0:05:13]} 26. Bxc4 {[%emt 0:01:24]} ({Don't play} 26. Rxc4 Rxc4 27. Bxc4 Bb7 $15) 26... Ra5 {[%emt 0:08:18]} ({Don't do} 26... d5 27. b3 Ra5 28. b4 $14) 27. Rhd1 {[%emt 0:00:38]} Rf5 $2 {[%emt 0:01:45] [#]} (27... Rg8 $14) 28. Bxa6 $1 $18 {[%emt 0:02:58][%mdl 512]} e5 {[%emt 0:02:13]} (28... Bxa6 $2 29. Rxd7+ Ke8 30. Rd8+ Kf7 31. Rxh8 $18) (28... d5 29. f4) 29. R4d2 {[%emt 0:00:39] aiming for Bxc8.} d5 {[%emt 0:01:16] [#]} (29... Bxa6 $2 30. Rxd7+ Kf8 31. Rd8+ Kf7 32. Rxh8 $18) 30. Rxd5 $1 {[%emt 0:07:57]} Rxf2 $16 {[%emt 0:00:41]} (30... Bxa6 $2 31. Rd7+ Kf8 32. Rd8+ Kf7 33. Rxh8 $18) 31. Bxc8 {[%emt 0:00:33]} Rxc8 {[%emt 0:00:05]} 32. R5d2 {[%emt 0:00:10]} Rxd2 {[%emt 0:00:42]} 33. Rxd2 {[%emt 0:00:01][%mdl 4096] Endgame KR-KR} e4 {[%emt 0:00:11]} 34. Rc2 {[%emt 0:00:32]} Rb8 {[%emt 0:00:17]} 35. b4 {[%emt 0:01:10]} Ke6 {[%emt 0:00:29]} 36. Kc1 {[%emt 0:00:17]} Ke5 {[%emt 0:00:52] [#]} (36... f5 $142) 37. Kd2 {[%emt 0:02:21]} (37. Rb2 $1 $16) 37... Kd4 {[%emt 0:01:16]} 38. Rc7 {[%emt 0:02:21]} ({White should play} 38. a4 $16) 38... Ra8 $11 {[%emt 0:00:40]} 39. Rc3 {[%emt 0:00:26]} f5 {[%emt 0:02:50]} 40. g3 {[%emt 0:00:35]} h5 {[%emt 0:01:28][%cal Oh5h4]} 41. h4 {[%emt 0:00:46]} Rg8 {[%emt 0:01:01][%cal Of5f4]} 42. Rb3 {[%emt 0:00:57]} Kc4 {[%emt 0:02:03]} 43. Re3 {[%emt 0:00:05]} Rg7 {[%emt 0:00:30]} 44. Ke2 {[%emt 0:01:30]} Kd4 {[%emt 0:00:32]} 45. Rb3 {[%emt 0:00:45]} Kc4 {[%emt 0:00:09]} 46. Re3 {[%emt 0:00:27]} Kd4 {[%emt 0:00:01]} 47. Kf2 {[%emt 0:00:20]} Rc7 {[%emt 0:00:11] [#]} (47... f4 $11 {keeps the balance.} 48. gxf4 Rg4) 48. Re2 {[%emt 0:00:35]} (48. b5 $1 $16) 48... Rc3 {[%emt 0:00:32] The position is equal.} 49. Rd2+ {[%emt 0:00:37]} Kc4 {[%emt 0:00:10] ( -> ...e3+)} 50. Rb2 {[%emt 0:00:30]} Rf3+ {[%emt 0:01:12]} 51. Kg2 {[%emt 0:00:05]} Rxa3 {[%emt 0:02:35]} 52. b5 {[%emt 0:00:33]} Ra7 {[%emt 0:01:33]} 53. Rf2 {[%emt 0:00:25]} Kxb5 {[%emt 0:00:28]} 54. Rxf5+ {[%emt 0:00:08]} Kc4 {[%emt 0:00:17]} 55. Rxh5 {[%emt 0:00:19]} Ra2+ {[%emt 0:00:15]} 56. Kf1 {[%emt 0:00:58]} Kd3 {[%emt 0:00:14] Strongly threatening ...Ra1+.} 57. Re5 {[%emt 0:01:01]} e3 {[%emt 0:00:35] Threatens to win with ...Ra1+.} 58. Rd5+ {[%emt 0:00:20]} Ke4 {[%emt 0:00:14]} 59. Rd8 {[%emt 0:00:16]} Ke5 {[%emt 0:01:19] Black defended with fortune.  Weighted Error Value: White=0.19 (very precise) /Black=0.26 (precise)} (59... Kf3 $5 60. Rf8+ $8 Kxg3 $11) 1/2-1/2

[Event "26th Hit Open-A 2022"]
[Site "Nova Gorica"]
[Date "2022.09.21"]
[Round "8.2"]
[White "Willow, Jonah B"]
[Black "Drazic, Sinisa"]
[Result "1/2-1/2"]
[ECO "B35"]
[WhiteElo "2385"]
[BlackElo "2327"]
[Annotator "TA"]
[PlyCount "121"]
[EventDate "2022.09.16"]
[EventType "swiss"]
[EventCountry "SLO"]
[SourceTitle "playchess.com"]
[Source "ChessBase"]
[SourceQuality "1"]
[TimeControl "5400+30"]

{[%evp 19,121,42,39,22,18,0,0,0,0,8,9,0,0,5,11,-4,-10,-16,0,0,0,-10,-15,-14,-4,-8,-16,-20,0,-12,0,0,0,-11,0,0,0,-60,-37,-60,-64,-92,-90,-90,-83,-83,-83,-83,-89,-136,-134,-114,-139,-139,-111,-150,-150,-329,-366,-351,-322,-391,-406,-422,-377,-473,-466,-450,-457,-803,-330,-680,-85,-78,-85,-85,-80,-410,0,0,0,0,0,0,0,0,0,0,0,0,0,0,0,0,0,0,0,0,0,0,0,0,0,0]} 1. e4 {[%emt 0:00:02]} c5 {[%emt 0:00:05]} 2. Nf3 {[%emt 0:00:05]} Nc6 {[%emt 0:00:05]} 3. Nc3 {[%emt 0:00:29]} g6 {[%emt 0:00:10]} 4. d4 {[%emt 0:00:22]} cxd4 {[%emt 0:00:01]} 5. Nxd4 {[%emt 0:00:06]} Bg7 {[%emt 0:00:03]} 6. Be3 {[%emt 0:00:15]} Nf6 {[%emt 0:00:05]} 7. Bc4 {[%emt 0:01:12]} Qa5 {[%emt 0:00:31]} 8. O-O {[%emt 0:01:09]} O-O {[%emt 0:00:11]} 9. Bb3 {[%emt 0:00:45]} d6 {[%emt 0:04:44]} 10. h3 {[%emt 0:00:15]} Bd7 {[%emt 0:00:01]} 11. Nd5 {[%emt 0:03:17] Black must now prevent Nxc6. B35: Sicilian: Accelerated Dragon with 5 Nc3: main line.} Rfe8 {[%emt 0:12:34]} 12. Nxc6 {[%emt 0:18:56]} Bxc6 {[%emt 0:03:04] [#]} 13. Bd2 $146 {[%emt 0:03:47]} ({Predecessor:} 13. Qf3 Nd7 14. c3 Ne5 15. Qf4 Nd3 16. Qg5 Bxd5 17. Qxd5 Qxd5 18. Bxd5 e6 19. Bxb7 {½-½ (39) Kitson,K (2387)-Greiner,T (2320) ICCF email 2007}) 13... Qd8 {[%emt 0:00:22]} 14. Re1 {[%emt 0:05:17]} e6 {[%emt 0:06:18]} 15. Nxf6+ {[%emt 0:03:58]} Bxf6 {[%emt 0:00:12]} 16. c3 {[%emt 0:00:17]} a5 {[%emt 0:07:28]} 17. a4 {[%emt 0:01:40]} Be5 {[%emt 0:06:31]} 18. Bc4 {[%emt 0:17:39]} Qd7 {[%emt 0:12:24]} 19. Qb3 {[%emt 0:14:04]} d5 {[%emt 0:00:32]} 20. Bb5 {[%emt 0:01:10]} dxe4 {[%emt 0:02:53]} 21. Rxe4 {[%emt 0:00:42][%mdl 64] Pin} Qxd2 {[%emt 0:02:21]} 22. Rxe5 {[%emt 0:00:29]} Red8 {[%emt 0:02:10]} 23. Rae1 {[%emt 0:08:58]} Kg7 {[%emt 0:01:19]} 24. R5e2 {[%emt 0:02:59]} Qf4 {[%emt 0:00:21]} 25. Bxc6 {[%emt 0:00:39]} bxc6 $40 {[%emt 0:00:03][%mdl 128] Black is up to no good.} 26. Re4 {[%emt 0:00:12]} Qd2 {[%emt 0:04:02]} 27. Qb6 {[%emt 0:02:46]} Rab8 {[%emt 0:15:48][%cal Ba8b8,Bb8b2,Bb2a2][%mdl 32]} 28. Qxa5 {[%emt 0:02:13]} ({Better is} 28. Qc7 $1 $11) 28... Rd5 $1 $15 {[%emt 0:02:31]} ({Resist} 28... Rxb2 29. Qe5+ (29. R4e2 Qxe2 30. Rxe2 Rd1+ 31. Kh2 Rxe2 $15) 29... f6 30. Qc5 $16) 29. Qa7 {[%emt 0:01:41]} Rxb2 {[%emt 0:01:15]} 30. Rf1 {[%emt 0:04:57]} Ra2 {[%emt 0:02:28]} 31. Re3 {[%emt 0:03:33]} Rd7 {[%emt 0:06:42][%cal Bd5d7,Bd7a7,Ba7a5][%mdl 32]} 32. Qa5 {[%emt 0:00:41]} Qd5 {[%emt 0:00:07]} 33. Qb4 {[%emt 0:00:52]} Ra7 {[%emt 0:00:04]} 34. Re4 {[%emt 0:01:22]} (34. c4 $142 Qd4 35. Ra3) 34... c5 $17 {[%emt 0:00:18]} ({And not} 34... R2xa4 35. Qxa4 Rxa4 36. Rxa4 $15) 35. Qc4 {[%emt 0:00:14]} Qxc4 {[%emt 0:00:28]} 36. Rxc4 {[%emt 0:00:01][%mdl 4096] Endgame KRR-KRR} Ra5 {[%emt 0:00:04]} 37. Re1 {[%emt 0:01:10]} R2xa4 {[%emt 0:00:05]} 38. Ree4 {[%emt 0:00:30]} (38. Rce4 $17 {keeps fighting.}) 38... Rxc4 $19 {[%emt 0:00:44]} 39. Rxc4 {[%emt 0:00:01] KR-KR} f5 {[%emt 0:00:11] Against Re4} 40. Kf1 {[%emt 0:00:30]} Kf6 {[%emt 0:00:16] ...g5 is the strong threat.} 41. Ke2 {[%emt 0:00:15]} g5 {[%emt 0:01:36]} 42. f4 {[%emt 0:01:20]} gxf4 {[%emt 0:05:12]} 43. Rxf4 {[%emt 0:00:09]} Kg5 {[%emt 0:00:05] Inhibits Rh4.} 44. Kf3 {[%emt 0:00:50]} (44. Rf1 $142 Ra2+ 45. Kf3) 44... h5 {[%emt 0:00:18]} (44... e5 $142 45. Rc4 h5) 45. g3 {[%emt 0:00:34] [#]} (45. g4 hxg4+ 46. hxg4) 45... Ra8 $2 {[%emt 0:03:41]} (45... e5 $1 $19 {[%cal Re5f4]} 46. Rc4 e4+ 47. Ke3 Ra2 48. Rxc5 Rg2) 46. Rc4 $17 {[%emt 0:00:06] [#]} Rc8 $1 {[%emt 0:00:01]} 47. Ke3 {[%emt 0:00:45]} e5 {[%emt 0:00:51] aiming for ...e4.} 48. Ra4 {[%emt 0:00:39][%mdl 8192]} (48. h4+ $17 Kf6 49. Ra4) 48... Rd8 $2 {[%emt 0:00:09]} (48... e4 $19 49. Ra5 Rd8 50. Rxc5 Rd3+ 51. Kf2 h4) 49. h4+ $1 $11 {[%emt 0:00:16] The position is equal.} Kf6 {[%emt 0:00:09]} 50. Ra6+ {[%emt 0:00:04]} Ke7 {[%emt 0:00:27]} 51. Rc6 {[%emt 0:00:24]} Rd5 {[%emt 0:00:14]} 52. c4 {[%emt 0:00:18]} Rd4 {[%emt 0:00:16]} 53. Rxc5 {[%emt 0:00:01]} Kd6 {[%emt 0:00:10]} 54. Rc8 {[%emt 0:00:12] White wants to mate with Rd8+.} Rg4 {[%emt 0:00:02]} 55. Kf2 {[%emt 0:00:34]} f4 {[%emt 0:00:01]} 56. gxf4 {[%emt 0:00:18]} Rxf4+ {[%emt 0:00:02]} 57. Kg3 {[%emt 0:00:31]} Rg4+ {[%emt 0:00:01]} 58. Kh3 {[%emt 0:00:24]} Rg7 {[%emt 0:01:57]} 59. Rh8 {[%emt 0:00:27]} e4 {[%emt 0:00:23]} 60. Rxh5 {[%emt 0:00:01]} Rc7 {[%emt 0:01:33]} 61. Kg3 {[%emt 0:00:42] And White is the lucky defender.  Weighted Error Value: White=0.36/Black=0.28 (precise)} 1/2-1/2

[Event "26th Hit Open-A 2022"]
[Site "Nova Gorica"]
[Date "2022.09.21"]
[Round "8.3"]
[White "Manish Anto Cristiano F"]
[Black "Sonis, Francesco"]
[Result "1-0"]
[ECO "B15"]
[WhiteElo "2249"]
[BlackElo "2542"]
[Annotator "TA"]
[PlyCount "77"]
[EventDate "2022.09.16"]
[EventType "swiss"]
[EventCountry "SLO"]
[SourceTitle "playchess.com"]
[Source "ChessBase"]
[SourceQuality "1"]
[TimeControl "5400+30"]

{[%evp 14,77,43,35,44,43,55,16,16,21,25,16,21,6,27,0,48,50,137,135,139,143,164,147,316,261,350,348,657,652,602,597,792,743,788,779,720,698,995,958,897,786,781,768,849,758,1066,1054,29972,29977,5877,2172,1946,1781,29981,29982,29982,29983,29983,29984,29984,29984,29983,29984,5473,2324]} 1. e4 {[%emt 0:00:02]} c6 {[%emt 0:02:41]} 2. Nc3 {[%emt 0:00:31]} d5 {[%emt 0:00:12]} 3. d4 {[%emt 0:00:29]} dxe4 {[%emt 0:00:17]} 4. Nxe4 {[%emt 0:00:09]} Nf6 {[%emt 0:02:12]} 5. Nxf6+ {[%emt 0:00:48]} exf6 {[%emt 0:00:05]} 6. c3 {[%emt 0:00:08]} Bd6 {[%emt 0:00:05]} 7. Bd3 {[%emt 0:00:15]} O-O {[%emt 0:00:07]} 8. Qc2 {[%emt 0:00:16] Active counter play!} Re8+ {[%emt 0:00:05] B15: Caro-Kann: 3 Nc3: 3...g6 and 3...dxe4 4 Nxe4 Nf6 5 Nxf6+ exf6.} 9. Ne2 {[%emt 0:00:28]} h5 {[%emt 0:00:03]} 10. Be3 {[%emt 0:06:02]} Nd7 {[%emt 0:02:18] The position is equal.} 11. O-O-O {[%emt 0:00:16]} Nf8 {[%emt 0:00:14]} 12. Kb1 {[%emt 0:03:54]} Be6 {[%emt 0:00:08]} 13. c4 {[%emt 0:00:14][%cal Bc3c4,Bc4c5][%mdl 32]} Rc8 {[%emt 0:00:52][%cal Ob7b5]} 14. Nc3 {[%emt 0:11:29]} a6 {[%emt 0:00:53]} (14... Bb4 $11) 15. c5 $14 {[%emt 0:03:45] [#]} Be7 $146 {[%emt 0:06:01]} (15... Bb8 $14) ({Predecessor:} 15... Bb8 16. Be4 Bd5 17. Nxd5 cxd5 18. Bf3 g6 19. Qb3 Rc7 20. Bxd5 Rd7 21. Bxb7 Qc7 22. c6 Rde7 23. d5 Rd8 24. Bb6 {1-0 (24) Yip,C (2420)-Ippolito,D (2369) Chess.com INT 2020}) 16. h3 {[%emt 0:01:59]} h4 {[%emt 0:00:17]} 17. f4 {[%emt 0:03:30][%cal Bf2f4,Bf4f5][%mdl 32]} Bd7 {[%emt 0:03:57][%cal Oe7c5]} 18. Rhe1 {[%emt 0:03:29]} Qa5 $2 {[%emt 0:10:59] This move loses the game for Black.} (18... f5 $16 19. Bxf5 Bxf5 20. Qxf5 Qd7 21. Qxd7 Nxd7) 19. f5 {[%emt 0:05:37]} b5 {[%emt 0:00:23]} 20. Bf2 {[%emt 0:03:58]} g5 $2 {[%emt 0:03:10]} (20... Rb8 21. Bxh4 Rbd8) 21. fxg6 $18 {[%emt 0:01:15]} Be6 {[%emt 0:00:05]} 22. b3 {[%emt 0:06:39]} Kg7 {[%emt 0:00:09]} 23. gxf7 {[%emt 0:00:49]} Bxf7 {[%emt 0:00:59]} 24. Re4 {[%emt 0:01:22] [#] Threatens to win with Rg4+.} f5 {[%emt 0:05:15] Prevents Rg4+.} 25. Re5 {[%emt 0:02:41]} Ne6 {[%emt 0:05:30]} 26. Bxf5 {[%emt 0:01:55]} Bf6 {[%emt 0:00:09]} 27. Re4 {[%emt 0:00:36]} Ng5 {[%emt 0:02:37]} 28. Rxh4 {[%emt 0:06:04]} Rcd8 {[%emt 0:00:15]} 29. Qd2 {[%emt 0:01:57] [#] aiming for Rg4.} b4 {[%emt 0:07:16]} 30. Ne4 {[%emt 0:00:36]} Rd5 {[%emt 0:00:32]} 31. Nxg5 {[%emt 0:08:43]} Rxf5 {[%emt 0:00:15]} 32. Rh7+ {[%emt 0:00:20]} Kg8 {[%emt 0:02:41]} 33. Nxf7 {[%emt 0:00:25][%cal Bg5f7,Bf7d6,Bd6e4][%mdl 32] White threatens Nh6+ and mate.} ({And not} 33. Rxf7 Bxg5 34. Rxf5 Bxd2 35. Rxd2 Qb5 $11) 33... Kxh7 {[%emt 0:00:17]} 34. Qh6+ {[%emt 0:00:08]} Kg8 {[%emt 0:00:01]} 35. Qg6+ {[%emt 0:00:11]} Kf8 {[%emt 0:00:02]} 36. Nd6 {[%emt 0:00:30][%csl Gd6][%cal Rg6f7]} Qxa2+ {[%emt 0:00:40]} 37. Kxa2 {[%emt 0:00:08][%csl Gd6][%cal Rg6f7]} Rxf2+ {[%emt 0:00:03]} 38. Kb1 {[%emt 0:00:33][%csl Gd6][%cal Rg6f7]} Re7 {[%emt 0:00:05]} 39. Ne4 {[%emt 0:00:28] Weighted Error Value: White=0.07 (flawless) /Black=0.92} 1-0

[Event "26th Hit Open-A 2022"]
[Site "Nova Gorica"]
[Date "2022.09.21"]
[Round "8.4"]
[White "Stefansson, Vignir Vatnar"]
[Black "Holtel, Jasper"]
[Result "1-0"]
[ECO "B51"]
[WhiteElo "2452"]
[BlackElo "2406"]
[Annotator "TA"]
[PlyCount "95"]
[EventDate "2022.09.16"]
[EventType "swiss"]
[EventCountry "SLO"]
[SourceTitle "playchess.com"]
[Source "ChessBase"]
[SourceQuality "1"]
[TimeControl "5400+30"]

{[%evp 9,95,12,15,10,10,12,12,11,9,-5,-7,-14,3,0,0,-14,32,23,37,36,33,23,27,23,40,33,49,43,46,41,53,32,37,37,60,54,108,104,93,75,230,208,173,114,118,110,116,123,122,122,114,112,116,114,111,121,152,17,14,0,140,71,89,60,264,262,551,541,562,561,533,548,532,527,651,642,834,810,768,727,738,733,1127,643,29978,29979,29979,29980]} 1. Nf3 {[%emt 0:02:22]} c5 {[%emt 0:00:04]} 2. e4 {[%emt 0:00:37]} d6 {[%emt 0:00:08]} 3. Bb5+ {[%emt 0:00:06]} Nd7 {[%emt 0:00:09]} 4. c4 {[%emt 0:00:25]} Ngf6 {[%emt 0:01:10]} 5. Nc3 {[%emt 0:00:10]} g6 {[%emt 0:00:57]} 6. O-O {[%emt 0:00:26] B51: Sicilian: Moscow Variation (3 Bb5+) without 3...Bd7.} Bg7 {[%emt 0:00:23]} 7. d3 {[%emt 0:01:30]} O-O {[%emt 0:01:02]} 8. Ba4 {[%emt 0:00:02] The position is equal.} Nb6 {[%emt 0:16:59]} 9. h3 {[%emt 0:12:49]} Nxa4 {[%emt 0:02:49]} 10. Qxa4 {[%emt 0:00:07]} Bd7 {[%emt 0:00:29]} 11. Qc2 {[%emt 0:01:15]} a6 {[%emt 0:04:15]} 12. Be3 {[%emt 0:03:22]} Bc6 {[%emt 0:04:03]} (12... b5 $11) 13. d4 $14 {[%emt 0:00:30]} cxd4 {[%emt 0:01:08]} 14. Nxd4 {[%emt 0:00:04]} Rc8 {[%emt 0:04:50] [#]} 15. Qd3 $146 {[%emt 0:00:13]} ({Predecessor:} 15. a4 b6 16. Rad1 Qc7 17. b3 Qb7 18. Nxc6 Rxc6 19. Rd2 Rfc8 20. Qd3 Nd7 21. Bd4 {½-½ (37) Campbell,B (2500)-Findlay,I (2500) Toronto 2002}) 15... Nd7 {[%emt 0:14:52]} 16. Rac1 {[%emt 0:01:26]} e6 {[%emt 0:06:44]} 17. Rfd1 {[%emt 0:01:53]} Qe7 {[%emt 0:00:35]} 18. b3 {[%emt 0:05:21]} Rfd8 {[%emt 0:02:45]} 19. Qd2 {[%emt 0:00:10]} Bf6 {[%emt 0:04:36]} 20. Re1 {[%emt 0:02:22]} Nc5 {[%emt 0:03:32]} 21. Bh6 {[%emt 0:01:03]} Be8 {[%emt 0:00:32]} 22. Rcd1 {[%emt 0:02:45]} Bg7 {[%emt 0:01:13]} ({Better is} 22... Qc7 $14) 23. Bxg7 $16 {[%emt 0:01:18]} Kxg7 {[%emt 0:00:03]} 24. f4 {[%emt 0:01:11][%cal Bf2f4,Bf4f5][%mdl 32]} f6 $2 {[%emt 0:10:50] [#]} (24... e5 $16 {was necessary.}) 25. f5 $1 $18 {[%emt 0:03:02]} e5 {[%emt 0:00:43]} 26. Nc2 {[%emt 0:11:49]} (26. Nd5 $18 Qf7 27. b4 exd4 28. bxc5) 26... Bc6 {[%emt 0:08:29]} 27. Nb4 {[%emt 0:01:07]} Qf7 {[%emt 0:01:02]} 28. Qe3 {[%emt 0:03:17]} a5 {[%emt 0:03:10]} 29. Nbd5 {[%emt 0:00:26]} gxf5 {[%emt 0:01:02]} 30. exf5 {[%emt 0:01:29]} Rg8 {[%emt 0:00:12]} 31. Kh2 {[%emt 0:01:08]} Kh8 {[%emt 0:01:06]} 32. g4 {[%emt 0:00:30]} Rg5 {[%emt 0:00:46]} 33. Qg3 {[%emt 0:04:41]} (33. Nb5 $16 Bxb5 34. cxb5) 33... Rcg8 $11 {[%emt 0:00:42]} 34. Qh4 {[%emt 0:00:07]} Qg7 {[%emt 0:01:08] [#]} (34... h5 $11 {remains equal.}) 35. Rg1 {[%emt 0:01:45]} (35. Rf1 $142 $1) 35... Bd7 {[%emt 0:01:09]} 36. Ne3 {[%emt 0:00:41] White has more active pieces. Pair of Knights!} e4 $2 {[%emt 0:02:07]} (36... Qf8 $1 $14) 37. Qg3 $18 {[%emt 0:01:07]} ({Less strong is} 37. Rxd6 Bxf5 38. Ncd5 (38. Nxf5 Rxf5 39. Rd5 Rf3 $11) (38. b4 axb4 39. Ncd5 Be6 $11) 38... Be6 $16) 37... Nd3 $2 {[%emt 0:00:24]} (37... Bc6 38. Rxd6 Qf8) 38. Nxe4 {[%emt 0:00:40]} Ne5 {[%emt 0:00:17]} 39. Nxg5 {[%emt 0:03:26]} Qxg5 {[%emt 0:00:04]} 40. Rxd6 {[%emt 0:05:29]} Bc6 {[%emt 0:00:09]} 41. Rf1 {[%emt 0:00:22] Inhibits Nf3+.} Re8 {[%emt 0:02:28]} 42. Nd5 {[%emt 0:02:14]} Nf7 {[%emt 0:00:17] Hoping for ...Re2+.} 43. Re6 {[%emt 0:00:48] Inhibits Re2+. And now Rxe8+ would win.} Rd8 {[%emt 0:00:23]} 44. Qc3 {[%emt 0:00:45]} Bxd5 {[%emt 0:01:30]} 45. cxd5 {[%emt 0:00:12]} Kg7 {[%emt 0:00:13]} 46. d6 {[%emt 0:01:22]} Nxd6 {[%emt 0:01:05] [#]} 47. Rxd6 $1 {[%emt 0:00:23]} Rxd6 {[%emt 0:00:28]} 48. Qc7+ {[%emt 0:00:04] Weighted Error Value: White=0.31/Black=0.50} 1-0